[Event "*** Titled Tuesday Blitz"]
[Site "Chess.com"]
[Date "2019.12.03"]
[Round "6"]
[White "WorldChampionBulletChess"]
[Black "Walter_White_Poland"]
[Result "1-0"]
[WhiteElo "2111"]
[BlackElo "2295"]
[TimeControl "180+2"]
[EndTime "14:23:17 PST"]
[Termination "WorldChampionBulletChess won by resignation"]

1. c4 {[%clk 0:02:55.8]} 1... c5 {[%clk 0:02:59.7]} 2. Nf3 {[%clk 0:02:57.2]}
2... Nc6 {[%clk 0:02:56.8]} 3. Nc3 {[%clk 0:02:54.1]} 3... e5 {[%clk 0:02:55.7]}
4. e3 {[%clk 0:02:54.7]} 4... f5 {[%clk 0:02:56.2]} 5. d4 {[%clk 0:02:53.5]}
5... e4 {[%clk 0:02:57.2]} 6. Nd2 {[%clk 0:02:53.1]} 6... cxd4 {[%clk
0:02:49.7]} 7. exd4 {[%clk 0:02:48.5]} 7... d6 {[%clk 0:02:50.3]} 8. d5 {[%clk
0:02:42.6]} 8... Ne5 {[%clk 0:02:50.5]} 9. Nb3 {[%clk 0:02:40.1]} 9... Nf6
{[%clk 0:02:49.4]} 10. Be3 {[%clk 0:02:37.6]} 10... g6 {[%clk 0:02:36.5]} 11.
Be2 {[%clk 0:02:34.4]} 11... Bg7 {[%clk 0:02:37.2]} 12. Nd4 {[%clk 0:02:29.6]}
12... O-O {[%clk 0:02:37]} 13. O-O {[%clk 0:02:04.2]} 13... Re8 {[%clk
0:02:37.5]} 14. b4 {[%clk 0:01:33.7]} 14... Nfg4 {[%clk 0:02:00.5]} 15. h3
{[%clk 0:01:33.1]} 15... Nxe3 {[%clk 0:01:57.5]} 16. fxe3 {[%clk 0:01:35]} 16...
a6 {[%clk 0:01:40.1]} 17. Rc1 {[%clk 0:01:14.8]} 17... Qg5 {[%clk 0:01:38.9]}
18. Ne6 {[%clk 0:01:05.9]} 18... Bxe6 {[%clk 0:01:27.1]} 19. dxe6 {[%clk
0:01:07.8]} 19... Qxe3+ {[%clk 0:01:24.7]} 20. Kh1 {[%clk 0:01:07]} 20... Rxe6
{[%clk 0:01:23]} 21. Nd5 {[%clk 0:00:56.4]} 21... Qa7 {[%clk 0:00:57.8]} 22. Nc7
{[%clk 0:00:56.3]} 22... Rf6 {[%clk 0:00:52.5]} 23. Nxa8 {[%clk 0:00:57]} 23...
Qxa8 {[%clk 0:00:53.7]} 24. Qd5+ {[%clk 0:00:57.8]} 24... Nf7 {[%clk 0:00:44.6]}
25. c5 {[%clk 0:00:55.5]} 25... dxc5 {[%clk 0:00:38.1]} 26. Rxc5 {[%clk
0:00:38.9]} 26... Rd6 {[%clk 0:00:24.7]} 27. Qc4 {[%clk 0:00:36]} 27... Rd8
{[%clk 0:00:25.6]} 28. Rc7 {[%clk 0:00:32.9]} 28... Rf8 {[%clk 0:00:24.8]} 29.
Qe6 {[%clk 0:00:23.5]} 29... Qe8 {[%clk 0:00:21.9]} 30. Bc4 {[%clk 0:00:23.7]}
30... Qxe6 {[%clk 0:00:13.5]} 31. Bxe6 {[%clk 0:00:25.6]} 31... Be5 {[%clk
0:00:14.7]} 32. Rxb7 {[%clk 0:00:25.7]} 32... Kg7 {[%clk 0:00:13.4]} 33. Rc1
{[%clk 0:00:24]} 33... Kf6 {[%clk 0:00:14.1]} 34. Bxf7 {[%clk 0:00:23.8]} 34...
Rxf7 {[%clk 0:00:15.1]} 35. Rc6+ {[%clk 0:00:23.1]} 35... Kg7 {[%clk 0:00:16.2]}
36. Rxf7+ {[%clk 0:00:23.9]} 36... Kxf7 {[%clk 0:00:17.5]} 37. Rxa6 {[%clk
0:00:21.5]} 37... g5 {[%clk 0:00:18.7]} 38. Kg1 {[%clk 0:00:22.2]} 38... f4
{[%clk 0:00:19.1]} 39. b5 {[%clk 0:00:20.1]} 39... h5 {[%clk 0:00:14.5]} 40. b6
{[%clk 0:00:20]} 40... g4 {[%clk 0:00:13]} 41. b7 {[%clk 0:00:18.2]} 41... gxh3
{[%clk 0:00:13.8]} 42. gxh3 {[%clk 0:00:18.7]} 42... f3 {[%clk 0:00:14.4]} 43.
Ra8 {[%clk 0:00:16.4]} 43... e3 {[%clk 0:00:13.2]} 44. b8=Q {[%clk 0:00:17]}
44... Bxb8 {[%clk 0:00:12.5]} 45. Rxb8 {[%clk 0:00:18.4]} 1-0

[Event "*** Titled Tuesday Blitz"]
[Site "Chess.com"]
[Date "2019.12.03"]
[Round "6"]
[White "FrogMist"]
[Black "przemekpiotrowski"]
[Result "0-1"]
[WhiteElo "2296"]
[BlackElo "2431"]
[TimeControl "180+2"]
[EndTime "14:23:18 PST"]
[Termination "przemekpiotrowski won by resignation"]

1. e4 {[%clk 0:03:01.9]} 1... c5 {[%clk 0:02:54.9]} 2. Nf3 {[%clk 0:03:01.7]}
2... d6 {[%clk 0:02:55.9]} 3. d4 {[%clk 0:03:02]} 3... cxd4 {[%clk 0:02:57.8]}
4. Nxd4 {[%clk 0:03:03.9]} 4... Nf6 {[%clk 0:02:58.9]} 5. Nc3 {[%clk 0:03:04.8]}
5... Nc6 {[%clk 0:02:59.4]} 6. Bg5 {[%clk 0:03:05.1]} 6... e6 {[%clk 0:02:59.8]}
7. Qd2 {[%clk 0:03:05.5]} 7... a6 {[%clk 0:02:59.7]} 8. O-O-O {[%clk 0:03:06.2]}
8... Bd7 {[%clk 0:03:00.5]} 9. f4 {[%clk 0:03:07]} 9... b5 {[%clk 0:03:01.4]}
10. Bxf6 {[%clk 0:03:07.8]} 10... gxf6 {[%clk 0:03:02.1]} 11. Kb1 {[%clk
0:03:04.1]} 11... Qb6 {[%clk 0:03:03.2]} 12. Nxc6 {[%clk 0:03:04.6]} 12... Bxc6
{[%clk 0:03:05.1]} 13. f5 {[%clk 0:03:03.1]} 13... Qc5 {[%clk 0:03:01.8]} 14.
fxe6 {[%clk 0:02:46.7]} 14... fxe6 {[%clk 0:03:02.5]} 15. Bd3 {[%clk 0:02:34.1]}
15... h5 {[%clk 0:03:03]} 16. Rhf1 {[%clk 0:02:32.3]} 16... Bh6 {[%clk
0:03:03.7]} 17. Qe1 {[%clk 0:02:30.4]} 17... Qe5 {[%clk 0:03:04.9]} 18. Qh4
{[%clk 0:02:24.7]} 18... Bg5 {[%clk 0:03:04.9]} 19. Qh3 {[%clk 0:02:25.9]} 19...
Ra7 {[%clk 0:02:54.2]} 20. g3 {[%clk 0:02:22.1]} 20... Rah7 {[%clk 0:02:47.9]}
21. Nd5 {[%clk 0:01:58.6]} 21... h4 {[%clk 0:02:26.8]} 22. Nb4 {[%clk
0:01:19.7]} 22... Bb7 {[%clk 0:02:08.5]} 23. Qg4 {[%clk 0:00:55.4]} 23... hxg3
{[%clk 0:02:01.1]} 24. hxg3 {[%clk 0:00:57.3]} 24... a5 {[%clk 0:02:02]} 25.
Bxb5+ {[%clk 0:00:47]} 25... Qxb5 {[%clk 0:01:59.2]} 26. Qxe6+ {[%clk
0:00:42.7]} 26... Re7 {[%clk 0:02:00]} 27. Qxd6 {[%clk 0:00:43.4]} 27... axb4
{[%clk 0:01:06.5]} 28. Qd8+ {[%clk 0:00:35.8]} 28... Kf7 {[%clk 0:01:08.1]} 29.
Qxh8 {[%clk 0:00:37.7]} 29... Bxe4 {[%clk 0:01:09.4]} 30. Ka1 {[%clk 0:00:09.6]}
30... Bxc2 {[%clk 0:01:05]} 31. Rde1 {[%clk 0:00:08.6]} 31... Qc5 {[%clk
0:00:38.3]} 32. Rh1 {[%clk 0:00:03.7]} 32... Bd2 {[%clk 0:00:14.3]} 33. Rh7+
{[%clk 0:00:03.3]} 33... Bxh7 {[%clk 0:00:13.9]} 34. Qxh7+ {[%clk 0:00:05.2]}
34... Ke8 {[%clk 0:00:15.2]} 35. Qg8+ {[%clk 0:00:05.4]} 35... Kd7 {[%clk
0:00:15.1]} 36. Rd1 {[%clk 0:00:07.3]} 36... Re1 {[%clk 0:00:14.2]} 37. Qf7+
{[%clk 0:00:07.6]} 37... Qe7 {[%clk 0:00:15.4]} 38. Qd5+ {[%clk 0:00:08.9]}
38... Qd6 {[%clk 0:00:16.5]} 39. Qf7+ {[%clk 0:00:09.3]} 39... Kc6 {[%clk
0:00:17.5]} 40. Qc4+ {[%clk 0:00:11]} 40... Kb6 {[%clk 0:00:18.6]} 41. Rxe1
{[%clk 0:00:09.5]} 41... Bxe1 {[%clk 0:00:20.5]} 42. a3 {[%clk 0:00:10.8]} 42...
bxa3 {[%clk 0:00:20.4]} 43. Qb3+ {[%clk 0:00:12.2]} 43... Qb4 {[%clk 0:00:21.1]}
44. Qxb4+ {[%clk 0:00:12.4]} 44... Bxb4 {[%clk 0:00:23]} 45. bxa3 {[%clk
0:00:14.3]} 45... Bxa3 {[%clk 0:00:24.1]} 46. Kb1 {[%clk 0:00:16.2]} 46... f5
{[%clk 0:00:24.5]} 47. Kc2 {[%clk 0:00:18.1]} 47... Bd6 {[%clk 0:00:25.5]} 48.
Kd3 {[%clk 0:00:19.3]} 48... Bxg3 {[%clk 0:00:26.6]} 49. Ke3 {[%clk 0:00:21.1]}
49... Be5 {[%clk 0:00:26.9]} 50. Kf3 {[%clk 0:00:23]} 50... Kc5 {[%clk
0:00:28.2]} 0-1

[Event "*** Titled Tuesday Blitz"]
[Site "Chess.com"]
[Date "2019.12.03"]
[Round "6"]
[White "Aleksandr_Kozak"]
[Black "Qvalda"]
[Result "1-0"]
[WhiteElo "2303"]
[BlackElo "2498"]
[TimeControl "180+2"]
[EndTime "14:23:23 PST"]
[Termination "Aleksandr_Kozak won on time"]

1. e4 {[%clk 0:03:01.9]} 1... d5 {[%clk 0:02:58.2]} 2. exd5 {[%clk 0:03:01.5]}
2... Qxd5 {[%clk 0:03:00.1]} 3. Nf3 {[%clk 0:03:02.1]} 3... Bg4 {[%clk
0:02:55.6]} 4. Be2 {[%clk 0:03:02.5]} 4... Nc6 {[%clk 0:02:50.7]} 5. d4 {[%clk
0:03:02.2]} 5... O-O-O {[%clk 0:02:49.5]} 6. Be3 {[%clk 0:03:03]} 6... e5 {[%clk
0:02:46.3]} 7. c4 {[%clk 0:03:02.9]} 7... Qa5+ {[%clk 0:02:42.2]} 8. Bd2 {[%clk
0:03:03.6]} 8... Bb4 {[%clk 0:02:25.6]} 9. d5 {[%clk 0:03:01.6]} 9... Bxd2+
{[%clk 0:02:24.5]} 10. Nbxd2 {[%clk 0:02:54.1]} 10... Bxf3 {[%clk 0:02:24.9]}
11. Bxf3 {[%clk 0:02:54.4]} 11... Nd4 {[%clk 0:02:25.6]} 12. O-O {[%clk
0:02:54.5]} 12... f5 {[%clk 0:02:06.4]} 13. a3 {[%clk 0:02:47.6]} 13... e4
{[%clk 0:01:59.9]} 14. Be2 {[%clk 0:02:44.8]} 14... Nf6 {[%clk 0:01:32.3]} 15.
b4 {[%clk 0:02:44.1]} 15... Nxe2+ {[%clk 0:01:32.5]} 16. Qxe2 {[%clk 0:02:44.4]}
16... Qa4 {[%clk 0:01:32.6]} 17. Ra2 {[%clk 0:02:31.1]} 17... Rhe8 {[%clk
0:01:22.3]} 18. Rb1 {[%clk 0:02:17.9]} 18... f4 {[%clk 0:01:19.9]} 19. Nb3
{[%clk 0:02:16.9]} 19... Qd7 {[%clk 0:01:01.4]} 20. b5 {[%clk 0:02:12]} 20...
Qf5 {[%clk 0:01:00.1]} 21. Nd4 {[%clk 0:01:35.8]} 21... Qg6 {[%clk 0:01:00.2]}
22. Ne6 {[%clk 0:00:57.8]} 22... f3 {[%clk 0:00:09.2]} 23. Qf1 {[%clk
0:00:57.9]} 23... Rd6 {[%clk 0:00:09.8]} 24. Kh1 {[%clk 0:00:48.4]} 24... e3
{[%clk 0:00:03.6]} 25. fxe3 {[%clk 0:00:48.5]} 25... Ng4 {[%clk 0:00:03.1]} 26.
gxf3 {[%clk 0:00:39.8]} 26... Nxe3 {[%clk 0:00:03.6]} 27. Qg1 {[%clk 0:00:40.1]}
27... Qh6 {[%clk 0:00:04.3]} 28. f4 {[%clk 0:00:23.3]} 28... Nf5 {[%clk
0:00:04.6]} 29. Qg4 {[%clk 0:00:20.5]} 29... g6 {[%clk 0:00:04]} 30. Re1 {[%clk
0:00:17.9]} 30... b6 {[%clk 0:00:04.2]} 31. a4 {[%clk 0:00:18.3]} 31... Qh4
{[%clk 0:00:04.4]} 32. Qxh4 {[%clk 0:00:17.6]} 32... Nxh4 {[%clk 0:00:06.3]} 33.
a5 {[%clk 0:00:18.1]} 33... Nf3 {[%clk 0:00:05.1]} 34. Rea1 {[%clk 0:00:14.5]}
34... Rdxe6 {[%clk 0:00:04.1]} 35. dxe6 {[%clk 0:00:14.5]} 35... Rxe6 {[%clk
0:00:06]} 36. axb6 {[%clk 0:00:15.8]} 36... axb6 {[%clk 0:00:07.8]} 37. Kg2
{[%clk 0:00:16.5]} 37... Nd4 {[%clk 0:00:08.1]} 38. Ra8+ {[%clk 0:00:16.2]}
38... Kd7 {[%clk 0:00:09.2]} 39. Rd1 {[%clk 0:00:16.7]} 39... Re4 {[%clk
0:00:05.5]} 40. Rh8 {[%clk 0:00:15.6]} 40... Ke6 {[%clk 0:00:06.5]} 41. Rxh7
{[%clk 0:00:15.1]} 41... Rxf4 {[%clk 0:00:03.3]} 42. Rxc7 {[%clk 0:00:15.8]}
42... Kf5 {[%clk 0:00:02.6]} 43. Rf7+ {[%clk 0:00:15.3]} 1-0

[Event "*** Titled Tuesday Blitz"]
[Site "Chess.com"]
[Date "2019.12.03"]
[Round "6"]
[White "Man-Chuk"]
[Black "gmcorrales"]
[Result "1-0"]
[WhiteElo "2928"]
[BlackElo "2734"]
[TimeControl "180+2"]
[EndTime "14:23:26 PST"]
[Termination "Man-Chuk won by resignation"]

1. d4 {[%clk 0:03:01.9]} 1... Nf6 {[%clk 0:03:00.9]} 2. c4 {[%clk 0:03:03.2]}
2... g6 {[%clk 0:03:02.3]} 3. Nc3 {[%clk 0:03:03.2]} 3... d5 {[%clk 0:03:03.1]}
4. Nf3 {[%clk 0:03:04.4]} 4... Bg7 {[%clk 0:03:03]} 5. h4 {[%clk 0:03:05.9]}
5... c6 {[%clk 0:02:57.8]} 6. cxd5 {[%clk 0:03:06]} 6... cxd5 {[%clk 0:02:57.3]}
7. Bf4 {[%clk 0:03:07.2]} 7... Nc6 {[%clk 0:02:55.5]} 8. e3 {[%clk 0:03:08.2]}
8... O-O {[%clk 0:02:52.9]} 9. Qb3 {[%clk 0:03:08.8]} 9... Na5 {[%clk
0:02:44.1]} 10. Qa3 {[%clk 0:03:09.7]} 10... a6 {[%clk 0:02:34.2]} 11. Rc1
{[%clk 0:03:02.3]} 11... b5 {[%clk 0:02:30.7]} 12. b3 {[%clk 0:03:03.3]} 12...
Bb7 {[%clk 0:02:12.9]} 13. Be2 {[%clk 0:02:59.8]} 13... Rc8 {[%clk 0:02:12.6]}
14. O-O {[%clk 0:02:58.5]} 14... Nc6 {[%clk 0:02:00.5]} 15. Ne5 {[%clk
0:02:35.1]} 15... e6 {[%clk 0:01:47.4]} 16. Qb2 {[%clk 0:02:12.5]} 16... Nd7
{[%clk 0:01:39.9]} 17. Nxd7 {[%clk 0:02:00.9]} 17... Qxd7 {[%clk 0:01:41.8]} 18.
h5 {[%clk 0:01:55.3]} 18... e5 {[%clk 0:01:25.4]} 19. dxe5 {[%clk 0:01:54.3]}
19... d4 {[%clk 0:01:24.6]} 20. Ne4 {[%clk 0:01:37.1]} 20... Nxe5 {[%clk
0:00:38.2]} 21. h6 {[%clk 0:01:29.2]} 21... Bh8 {[%clk 0:00:35.4]} 22. exd4
{[%clk 0:01:26.2]} 22... Qf5 {[%clk 0:00:11]} 23. Bxe5 {[%clk 0:01:09.8]} 23...
Bxe4 {[%clk 0:00:10.7]} 24. f3 {[%clk 0:00:39.8]} 24... Bd5 {[%clk 0:00:10]} 25.
Bxh8 {[%clk 0:00:33.5]} 25... Kxh8 {[%clk 0:00:10.8]} 26. Qd2 {[%clk 0:00:32.4]}
26... Qf6 {[%clk 0:00:09]} 27. Rc5 {[%clk 0:00:29.2]} 27... Rcd8 {[%clk
0:00:09.5]} 28. Rfc1 {[%clk 0:00:27.6]} 28... Be6 {[%clk 0:00:09.6]} 29. Rd1
{[%clk 0:00:25.2]} 29... Rd5 {[%clk 0:00:08]} 30. Rxd5 {[%clk 0:00:19.4]} 30...
Bxd5 {[%clk 0:00:09.9]} 31. Qe3 {[%clk 0:00:20.8]} 31... Kg8 {[%clk 0:00:05.4]}
32. Qe5 {[%clk 0:00:20.5]} 32... Qxe5 {[%clk 0:00:05.7]} 33. dxe5 {[%clk
0:00:22.4]} 33... Be6 {[%clk 0:00:07.6]} 34. Rd6 {[%clk 0:00:22.8]} 34... Ra8
{[%clk 0:00:08.4]} 35. Bd3 {[%clk 0:00:16.6]} 35... Kf8 {[%clk 0:00:09.6]} 36.
Be4 {[%clk 0:00:17.9]} 36... Rc8 {[%clk 0:00:08.4]} 37. Rxa6 {[%clk 0:00:18.5]}
37... Rc5 {[%clk 0:00:05]} 38. f4 {[%clk 0:00:18.6]} 38... Rc1+ {[%clk
0:00:04.9]} 39. Kf2 {[%clk 0:00:19.8]} 39... Ra1 {[%clk 0:00:06.1]} 40. Ra8+
{[%clk 0:00:20.4]} 40... Ke7 {[%clk 0:00:07.3]} 41. g3 {[%clk 0:00:21.1]} 41...
Bxb3 {[%clk 0:00:07.8]} 42. axb3 {[%clk 0:00:21.8]} 42... Rxa8 {[%clk
0:00:07.9]} 43. Bxa8 {[%clk 0:00:23.3]} 43... f5 {[%clk 0:00:08.6]} 44. exf6+
{[%clk 0:00:24.3]} 44... Kxf6 {[%clk 0:00:09.8]} 45. Be4 {[%clk 0:00:25.1]}
45... b4 {[%clk 0:00:11.3]} 46. g4 {[%clk 0:00:25.2]} 46... g5 {[%clk
0:00:12.5]} 47. fxg5+ {[%clk 0:00:23.5]} 47... Kxg5 {[%clk 0:00:14.4]} 48. Bxh7
{[%clk 0:00:24.5]} 48... Kxh6 {[%clk 0:00:16.3]} 49. Bf5 {[%clk 0:00:25.2]}
49... Kg5 {[%clk 0:00:18.2]} 50. Ke3 {[%clk 0:00:26.9]} 1-0

[Event "*** Titled Tuesday Blitz"]
[Site "Chess.com"]
[Date "2019.12.03"]
[Round "6"]
[White "Witik"]
[Black "GCamachoMartinez"]
[Result "0-1"]
[WhiteElo "2582"]
[BlackElo "2447"]
[TimeControl "180+2"]
[EndTime "14:23:28 PST"]
[Termination "GCamachoMartinez won by resignation"]

1. d4 {[%clk 0:03:01.9]} 1... d5 {[%clk 0:03:00.3]} 2. Bf4 {[%clk 0:03:02.4]}
2... Bf5 {[%clk 0:02:59.2]} 3. e3 {[%clk 0:03:03.3]} 3... e6 {[%clk 0:02:59.7]}
4. c4 {[%clk 0:03:03.8]} 4... c6 {[%clk 0:03:00.3]} 5. Nc3 {[%clk 0:03:04.6]}
5... Nf6 {[%clk 0:03:00.6]} 6. Qb3 {[%clk 0:03:05.2]} 6... Qc8 {[%clk
0:02:43.4]} 7. Rc1 {[%clk 0:03:03.8]} 7... Nbd7 {[%clk 0:02:15.8]} 8. cxd5
{[%clk 0:02:56.5]} 8... Nxd5 {[%clk 0:02:16.6]} 9. Bg3 {[%clk 0:02:39.3]} 9...
Nxc3 {[%clk 0:02:16.7]} 10. bxc3 {[%clk 0:02:37.2]} 10... Be7 {[%clk 0:02:13.3]}
11. Nf3 {[%clk 0:02:37.4]} 11... O-O {[%clk 0:02:12.8]} 12. Be2 {[%clk
0:02:37.6]} 12... Bd8 {[%clk 0:01:54.5]} 13. O-O {[%clk 0:02:37.2]} 13... Bc7
{[%clk 0:01:55.4]} 14. Nd2 {[%clk 0:02:18.5]} 14... Bxg3 {[%clk 0:01:54.5]} 15.
hxg3 {[%clk 0:02:20.4]} 15... Qc7 {[%clk 0:01:55]} 16. e4 {[%clk 0:02:20.9]}
16... Bg6 {[%clk 0:01:55.8]} 17. Rfe1 {[%clk 0:02:04.9]} 17... Qb6 {[%clk
0:01:40.7]} 18. f3 {[%clk 0:01:56.9]} 18... Qxb3 {[%clk 0:01:40.1]} 19. axb3
{[%clk 0:01:56.8]} 19... c5 {[%clk 0:01:37.9]} 20. Nc4 {[%clk 0:01:52.9]} 20...
Rfc8 {[%clk 0:01:34.9]} 21. Nd6 {[%clk 0:01:51.2]} 21... Rc7 {[%clk 0:01:33.6]}
22. Kf2 {[%clk 0:01:44.3]} 22... a6 {[%clk 0:01:34]} 23. Ke3 {[%clk 0:01:33]}
23... Rd8 {[%clk 0:01:34.7]} 24. Nc4 {[%clk 0:01:26.1]} 24... f5 {[%clk
0:01:27.5]} 25. Bd3 {[%clk 0:01:21.1]} 25... fxe4 {[%clk 0:01:26.2]} 26. fxe4
{[%clk 0:01:17.9]} 26... b5 {[%clk 0:01:24.3]} 27. Nd2 {[%clk 0:01:10.9]} 27...
Rdc8 {[%clk 0:01:24.4]} 28. Ra1 {[%clk 0:00:51.2]} 28... cxd4+ {[%clk
0:01:17.8]} 29. cxd4 {[%clk 0:00:51.9]} 29... e5 {[%clk 0:01:15.3]} 30. d5
{[%clk 0:00:21.3]} 30... Rc3 {[%clk 0:01:14.8]} 31. Nf3 {[%clk 0:00:22.1]} 31...
Bh5 {[%clk 0:01:12.5]} 32. Rxa6 {[%clk 0:00:21.9]} 32... Bxf3 {[%clk 0:01:11.9]}
33. gxf3 {[%clk 0:00:22.8]} 33... Rxd3+ {[%clk 0:01:12.9]} 34. Kxd3 {[%clk
0:00:21.8]} 34... Nc5+ {[%clk 0:01:14.8]} 35. Ke3 {[%clk 0:00:21]} 35... Nxa6
{[%clk 0:01:16.7]} 36. f4 {[%clk 0:00:22.7]} 36... Rc3+ {[%clk 0:01:11.1]} 37.
Kd2 {[%clk 0:00:23.1]} 37... Rxb3 {[%clk 0:01:11.3]} 38. fxe5 {[%clk 0:00:24.6]}
38... Nc5 {[%clk 0:01:12.2]} 39. e6 {[%clk 0:00:23.6]} 39... Kf8 {[%clk
0:01:07.7]} 40. Rf1+ {[%clk 0:00:23.2]} 40... Ke8 {[%clk 0:01:08.9]} 41. Rf7
{[%clk 0:00:18.9]} 41... Nxe4+ {[%clk 0:01:06.6]} 42. Kc2 {[%clk 0:00:19.9]}
42... Rc3+ {[%clk 0:01:07.7]} 43. Kb2 {[%clk 0:00:21]} 43... b4 {[%clk
0:01:08.8]} 44. Rxg7 {[%clk 0:00:21]} 44... Rd3 {[%clk 0:01:05.4]} 45. Rg8+
{[%clk 0:00:14.3]} 45... Ke7 {[%clk 0:01:05.6]} 46. Rg7+ {[%clk 0:00:15.6]}
46... Kf6 {[%clk 0:00:52.5]} 47. Rf7+ {[%clk 0:00:15.8]} 47... Kg6 {[%clk
0:00:53.1]} 48. Rd7 {[%clk 0:00:10.3]} 48... Nf6 {[%clk 0:00:43.3]} 49. e7
{[%clk 0:00:09.6]} 49... Kf7 {[%clk 0:00:41.3]} 50. e8=Q+ {[%clk 0:00:03.5]}
50... Kxe8 {[%clk 0:00:40.9]} 0-1

[Event "*** Titled Tuesday Blitz"]
[Site "Chess.com"]
[Date "2019.12.03"]
[Round "6"]
[White "Lovkov_Roman"]
[Black "skoularikii"]
[Result "1-0"]
[WhiteElo "2761"]
[BlackElo "2548"]
[TimeControl "180+2"]
[EndTime "14:23:30 PST"]
[Termination "Lovkov_Roman won by checkmate"]

1. e4 {[%clk 0:03:01.9]} 1... c5 {[%clk 0:02:51]} 2. a3 {[%clk 0:03:01.7]} 2...
g6 {[%clk 0:02:50.4]} 3. b4 {[%clk 0:03:01.4]} 3... Bg7 {[%clk 0:02:49.8]} 4.
Nc3 {[%clk 0:03:01.3]} 4... b6 {[%clk 0:02:48.9]} 5. bxc5 {[%clk 0:03:01.1]}
5... bxc5 {[%clk 0:02:49.7]} 6. h4 {[%clk 0:02:55.1]} 6... h5 {[%clk 0:02:49.5]}
7. Nf3 {[%clk 0:02:55.7]} 7... Nh6 {[%clk 0:02:49.6]} 8. Bc4 {[%clk 0:02:54.5]}
8... Nc6 {[%clk 0:02:49]} 9. Rb1 {[%clk 0:02:53.9]} 9... Ng4 {[%clk 0:02:44.8]}
10. Nd5 {[%clk 0:02:43.3]} 10... e6 {[%clk 0:02:37.6]} 11. Ne3 {[%clk
0:02:39.6]} 11... O-O {[%clk 0:02:25.4]} 12. Ng5 {[%clk 0:01:36.5]} 12... Nxe3
{[%clk 0:01:41.4]} 13. dxe3 {[%clk 0:01:37.6]} 13... Ne5 {[%clk 0:01:38.7]} 14.
Be2 {[%clk 0:01:36.3]} 14... d5 {[%clk 0:01:36]} 15. f4 {[%clk 0:01:26.9]} 15...
Nc6 {[%clk 0:01:34.9]} 16. Bxh5 {[%clk 0:01:14]} 16... Bc3+ {[%clk 0:01:04.8]}
17. Kf2 {[%clk 0:01:12.7]} 17... f6 {[%clk 0:00:40.5]} 18. Bxg6 {[%clk
0:00:55.2]} 18... Kg7 {[%clk 0:00:19.8]} 19. Qd3 {[%clk 0:00:33.5]} 19... d4
{[%clk 0:00:18.2]} 20. Qc4 {[%clk 0:00:19.6]} 20... fxg5 {[%clk 0:00:15.4]} 21.
Qxc5 {[%clk 0:00:14]} 21... Bd7 {[%clk 0:00:07.5]} 22. hxg5 {[%clk 0:00:10.1]}
22... Kxg6 {[%clk 0:00:07.6]} 23. Rh6+ {[%clk 0:00:10.8]} 23... Kg7 {[%clk
0:00:08.9]} 24. Rb7 {[%clk 0:00:12.4]} 24... Rf7 {[%clk 0:00:08.7]} 25. Kg3
{[%clk 0:00:09.3]} 25... Qe7 {[%clk 0:00:07]} 26. Qc4 {[%clk 0:00:08.1]} 26...
e5 {[%clk 0:00:05.4]} 27. Rxd7 {[%clk 0:00:05.5]} 27... Qxd7 {[%clk 0:00:06.2]}
28. f5 {[%clk 0:00:06.4]} 28... Qb7 {[%clk 0:00:02.9]} 29. Rxc6 {[%clk 0:00:07]}
29... Raf8 {[%clk 0:00:03]} 30. g6 {[%clk 0:00:07.2]} 30... Rf6 {[%clk
0:00:03.6]} 31. Rc7+ {[%clk 0:00:07.7]} 31... R8f7 {[%clk 0:00:04]} 32. Rxb7
{[%clk 0:00:08.8]} 32... Rxb7 {[%clk 0:00:04.7]} 33. exd4 {[%clk 0:00:10.3]}
33... Bxd4 {[%clk 0:00:05.6]} 34. Bg5 {[%clk 0:00:11.7]} 34... Rfb6 {[%clk
0:00:05.6]} 35. Qd5 {[%clk 0:00:10.5]} 35... Bc3 {[%clk 0:00:06.9]} 36. Be3
{[%clk 0:00:10.7]} 36... Be1+ {[%clk 0:00:08]} 37. Kf3 {[%clk 0:00:11.1]} 37...
Rb5 {[%clk 0:00:07.8]} 38. Qe6 {[%clk 0:00:11.5]} 38... Bc3 {[%clk 0:00:07.8]}
39. Bg5 {[%clk 0:00:11.6]} 39... R5b6 {[%clk 0:00:08.5]} 40. Bf6+ {[%clk
0:00:12.2]} 40... Kh6 {[%clk 0:00:09.9]} 41. Qd5 {[%clk 0:00:11.8]} 41... Rc7
{[%clk 0:00:06.8]} 42. Qd8 {[%clk 0:00:12.6]} 42... Rxf6 {[%clk 0:00:03.1]} 43.
Qxf6 {[%clk 0:00:13.9]} 43... Rg7 {[%clk 0:00:02.3]} 44. Qh4# {[%clk 0:00:14.8]}
1-0